[Event "Titled Tuesday Blitz May 30 Late 2023"]
[White "Gil Alba, Hector Luis"]
[Black "Prohaszka, Peter"]
[WhiteFideId "3504670"]
[BlackFideId "726265"]
[WhiteElo "2331"]
[BlackElo "2626"]
[Result "0-1"]
[Round "02"]
[TimeControl "180+2"]
[Date "2023.05.31"]
[WhiteClock "0:00:24"]
[BlackClock "0:00:05"]

1. e4 {[%clk 0:03:00]}  c6 {[%clk 0:02:54]} 2. d4 {[%clk 0:02:59]}  d5 {[%clk 0:02:53]} 3. Nd2 {[%clk 0:02:58]}  dxe4 {[%clk 0:02:49]} 4. Nxe4 {[%clk 0:02:58]}  Bf5 {[%clk 0:02:50]} 5. Ng3 {[%clk 0:02:58]}  Bg6 {[%clk 0:02:50]} 6. h4 {[%clk 0:02:58]}  h6 {[%clk 0:02:49]} 7. Nh3 {[%clk 0:02:58]}  e6 {[%clk 0:02:42]} 8. Nf4 {[%clk 0:02:57]}  Bh7 {[%clk 0:02:42]} 9. Bc4 {[%clk 0:02:57]}  Nf6 {[%clk 0:02:40]} 10. Qe2 {[%clk 0:02:57]}  Bd6 {[%clk 0:02:34]} 11. c3 {[%clk 0:02:46]}  O-O {[%clk 0:02:26]} 12. Ngh5 {[%clk 0:02:41]}  Nbd7 {[%clk 0:02:06]} 13. Nxf6+ {[%clk 0:02:26]}  Qxf6 {[%clk 0:01:52]} 14. Nh5 {[%clk 0:02:25]}  Qg6 {[%clk 0:01:39]} 15. Bf4 {[%clk 0:02:18]}  e5 {[%clk 0:01:36]} 16. dxe5 {[%clk 0:02:09]}  Nxe5 {[%clk 0:01:36]} 17. Bxe5 {[%clk 0:02:05]}  Bxe5 {[%clk 0:01:35]} 18. O-O {[%clk 0:02:03]}  Rae8 {[%clk 0:01:33]} 19. Qf3 {[%clk 0:01:58]}  Qf5 {[%clk 0:01:10]} 20. Qxf5 {[%clk 0:01:56]}  Bxf5 {[%clk 0:01:11]} 21. Ng3 {[%clk 0:01:57]}  Bg4 {[%clk 0:01:00]} 22. Rfe1 {[%clk 0:01:48]}  Bf6 {[%clk 0:00:53]} 23. Ne4 {[%clk 0:01:44]}  Be7 {[%clk 0:00:41]} 24. g3 {[%clk 0:01:37]}  g6 {[%clk 0:00:40]} 25. Re3 {[%clk 0:01:33]}  Kg7 {[%clk 0:00:38]} 26. Rae1 {[%clk 0:01:32]}  Rd8 {[%clk 0:00:29]} 27. f3 {[%clk 0:01:25]}  Bc8 {[%clk 0:00:28]} 28. R3e2 {[%clk 0:01:22]}  b5 {[%clk 0:00:26]} 29. Bb3 {[%clk 0:01:20]}  f5 {[%clk 0:00:24]} 30. Nf2 {[%clk 0:01:15]}  Bc5 {[%clk 0:00:20]} 31. Kg2 {[%clk 0:01:15]}  Bd7 {[%clk 0:00:20]} 32. Nh3 {[%clk 0:01:14]}  Bd6 {[%clk 0:00:17]} 33. Nf4 {[%clk 0:01:12]}  Bxf4 {[%clk 0:00:17]} 34. gxf4 {[%clk 0:01:12]}  Rfe8 {[%clk 0:00:16]} 35. Re7+ {[%clk 0:01:11]}  Rxe7 {[%clk 0:00:09]} 36. Rxe7+ {[%clk 0:01:10]}  Kf8 {[%clk 0:00:08]} 37. Rf7+ {[%clk 0:01:05]}  Ke8 {[%clk 0:00:08]} 38. Rg7 {[%clk 0:01:05]}  Bc8 {[%clk 0:00:08]} 39. Rg8+ {[%clk 0:01:03]}  Ke7 {[%clk 0:00:08]} 40. Rxd8 {[%clk 0:01:01]}  Kxd8 {[%clk 0:00:09]} 41. Kg3 {[%clk 0:01:01]}  Ke7 {[%clk 0:00:09]} 42. Kf2 {[%clk 0:01:01]}  a5 {[%clk 0:00:04]} 43. a4 {[%clk 0:01:00]}  Be6 {[%clk 0:00:04]} 44. Bc2 {[%clk 0:00:55]}  Kd6 {[%clk 0:00:04]} 45. Ke3 {[%clk 0:00:53]}  Kc5 {[%clk 0:00:04]} 46. axb5 {[%clk 0:00:50]}  cxb5 {[%clk 0:00:05]} 47. b3 {[%clk 0:00:46]}  b4 {[%clk 0:00:04]} 48. Kd2 {[%clk 0:00:40]}  Bd7 {[%clk 0:00:03]} 49. Bd3 {[%clk 0:00:37]}  Bc6 {[%clk 0:00:03]} 50. Be2 {[%clk 0:00:35]}  Bd5 {[%clk 0:00:04]} 51. c4 {[%clk 0:00:32]}  Bc6 {[%clk 0:00:04]} 52. Kc2 {[%clk 0:00:30]}  a4 {[%clk 0:00:04]} 53. bxa4 {[%clk 0:00:28]}  Bxa4+ {[%clk 0:00:05]} 54. Kd2 {[%clk 0:00:28]}  Bb3 {[%clk 0:00:05]} 55. Bd3 {[%clk 0:00:27]}  Bxc4 {[%clk 0:00:05]} 56. Bb1 {[%clk 0:00:26]}  Bd5 {[%clk 0:00:05]} 57. h5 {[%clk 0:00:25]}  gxh5 {[%clk 0:00:06]} 58. Bxf5 {[%clk 0:00:25]}  Bxf3 {[%clk 0:00:05]} 59. Bh3 {[%clk 0:00:25]}  Bg4 {[%clk 0:00:05]} 60. Bg2 {[%clk 0:00:24]}  Kd4 {[%clk 0:00:05]} 0-1


[Site "https://www.chess.com"]

[Event "Titled Tuesday Blitz May 30 Late 2023"]
[White "Jimenez Almeida, Luis David"]
[Black "Martinez Ramirez, Lennis"]
[WhiteFideId "22242244"]
[BlackFideId "3509079"]
[WhiteElo "2245"]
[BlackElo "2410"]
[Result "0-1"]
[Round "02"]
[TimeControl "180+2"]
[Date "2023.05.31"]
[WhiteClock "0:00:45"]
[BlackClock "0:01:07"]

1. e4 {[%clk 0:03:00]}  c5 {[%clk 0:02:55]} 2. Nc3 {[%clk 0:03:00]}  Nc6 {[%clk 0:02:56]} 3. g3 {[%clk 0:03:00]}  g6 {[%clk 0:02:56]} 4. Bg2 {[%clk 0:03:01]}  Bg7 {[%clk 0:02:56]} 5. Nge2 {[%clk 0:03:02]}  d6 {[%clk 0:02:54]} 6. h3 {[%clk 0:03:02]}  Rb8 {[%clk 0:02:50]} 7. a4 {[%clk 0:03:01]}  a6 {[%clk 0:02:50]} 8. O-O {[%clk 0:03:02]}  e5 {[%clk 0:02:48]} 9. d3 {[%clk 0:03:01]}  Nge7 {[%clk 0:02:47]} 10. Be3 {[%clk 0:03:01]}  O-O {[%clk 0:02:47]} 11. Qd2 {[%clk 0:03:01]}  Nd4 {[%clk 0:02:46]} 12. Nc1 {[%clk 0:02:55]}  Bxh3 {[%clk 0:02:42]} 13. Bh6 {[%clk 0:02:46]}  Qd7 {[%clk 0:02:41]} 14. Bxg7 {[%clk 0:02:45]}  Kxg7 {[%clk 0:02:41]} 15. f4 {[%clk 0:02:44]}  Bxg2 {[%clk 0:02:37]} 16. Kxg2 {[%clk 0:02:45]}  exf4 {[%clk 0:02:37]} 17. Rxf4 {[%clk 0:02:20]}  d5 {[%clk 0:02:28]} 18. Nd1 {[%clk 0:02:14]}  dxe4 {[%clk 0:02:26]} 19. dxe4 {[%clk 0:02:13]}  Rbd8 {[%clk 0:02:26]} 20. Ne3 {[%clk 0:02:09]}  Ne6 {[%clk 0:02:24]} 21. Qc3+ {[%clk 0:02:06]}  Qd4 {[%clk 0:02:22]} 22. Rh4 {[%clk 0:02:01]}  Qxc3 {[%clk 0:02:22]} 23. bxc3 {[%clk 0:02:01]}  Rd2+ {[%clk 0:02:22]} 24. Kg1 {[%clk 0:01:59]}  Rfd8 {[%clk 0:02:19]} 25. Nd3 {[%clk 0:01:59]}  Re2 {[%clk 0:02:17]} 26. Ng4 {[%clk 0:01:57]}  Ng5 {[%clk 0:02:09]} 27. Rf1 {[%clk 0:01:52]}  Rxc2 {[%clk 0:02:05]} 28. Nde5 {[%clk 0:01:33]}  Rdd2 {[%clk 0:02:04]} 29. Kh1 {[%clk 0:01:28]}  h5 {[%clk 0:02:02]} 30. Nf6 {[%clk 0:01:20]}  Rxc3 {[%clk 0:01:44]} 31. Rhf4 {[%clk 0:01:07]}  Rcc2 {[%clk 0:01:25]} 32. Rh4 {[%clk 0:00:58]}  Nc6 {[%clk 0:01:16]} 33. Ned7 {[%clk 0:00:48]}  Nf3 {[%clk 0:01:12]} 34. Ne8+ {[%clk 0:00:45]}  Kh6 {[%clk 0:01:07]} 0-1


[Site "https://www.chess.com"]

[Event "Titled Tuesday Blitz May 30 Late 2023"]
[White "Kouskoutis, Georgios-Alexandros"]
[Black "Rosen, Eric"]
[WhiteFideId "4234049"]
[BlackFideId "2032562"]
[WhiteElo "2149"]
[BlackElo "2331"]
[Result "0-1"]
[Round "02"]
[TimeControl "180+2"]
[Date "2023.05.31"]
[WhiteClock "0:00:01"]
[BlackClock "0:00:10"]

1. Nf3 {[%clk 0:02:55]}  d5 {[%clk 0:02:59]} 2. g3 {[%clk 0:02:53]}  Nf6 {[%clk 0:03:00]} 3. Bg2 {[%clk 0:02:52]}  e6 {[%clk 0:03:00]} 4. O-O {[%clk 0:02:52]}  Be7 {[%clk 0:03:00]} 5. c4 {[%clk 0:02:52]}  d4 {[%clk 0:02:54]} 6. e3 {[%clk 0:02:46]}  c5 {[%clk 0:02:54]} 7. exd4 {[%clk 0:02:46]}  cxd4 {[%clk 0:02:55]} 8. d3 {[%clk 0:02:46]}  Nc6 {[%clk 0:02:55]} 9. Na3 {[%clk 0:02:29]}  Nd7 {[%clk 0:02:52]} 10. Nd2 {[%clk 0:02:16]}  O-O {[%clk 0:02:47]} 11. Nc2 {[%clk 0:02:15]}  e5 {[%clk 0:02:47]} 12. Re1 {[%clk 0:02:11]}  Nc5 {[%clk 0:02:38]} 13. Ne4 {[%clk 0:01:28]}  Ne6 {[%clk 0:02:38]} 14. g4 {[%clk 0:01:24]}  a5 {[%clk 0:02:36]} 15. Rb1 {[%clk 0:01:07]}  Ra6 {[%clk 0:02:26]} 16. a3 {[%clk 0:01:05]}  a4 {[%clk 0:02:25]} 17. Bd2 {[%clk 0:00:54]}  g6 {[%clk 0:02:24]} 18. Nb4 {[%clk 0:00:39]}  Ra7 {[%clk 0:02:02]} 19. Nd5 {[%clk 0:00:35]}  Bh4 {[%clk 0:01:55]} 20. Bh6 {[%clk 0:00:24]}  Ng7 {[%clk 0:01:09]} 21. g5 {[%clk 0:00:21]}  Kh8 {[%clk 0:01:09]} 22. Qf3 {[%clk 0:00:13]}  Ne7 {[%clk 0:00:59]} 23. Nxe7 {[%clk 0:00:08]}  Qxe7 {[%clk 0:00:58]} 24. Bh3 {[%clk 0:00:07]}  Be6 {[%clk 0:00:30]} 25. Bxe6 {[%clk 0:00:06]}  Qxe6 {[%clk 0:00:31]} 26. Qf6 {[%clk 0:00:05]}  Rg8 {[%clk 0:00:17]} 27. Bxg7+ {[%clk 0:00:04]}  Rxg7 {[%clk 0:00:17]} 28. Qxe6 {[%clk 0:00:05]}  fxe6 {[%clk 0:00:18]} 29. Kg2 {[%clk 0:00:03]}  h6 {[%clk 0:00:17]} 30. gxh6 {[%clk 0:00:03]}  Rh7 {[%clk 0:00:17]} 31. Ng3 {[%clk 0:00:02]}  Bf6 {[%clk 0:00:16]} 32. Ne4 {[%clk 0:00:02]}  Bd8 {[%clk 0:00:16]} 33. b3 {[%clk 0:00:02]}  Rxh6 {[%clk 0:00:09]} 34. bxa4 {[%clk 0:00:01]}  Rh7 {[%clk 0:00:10]} 35. Rb4 {[%clk 0:00:01]}  Ba5 {[%clk 0:00:10]} 0-1


[Site "https://www.chess.com"]

[Event "Titled Tuesday Blitz May 30 Late 2023"]
[White "Melikyan, Gnel"]
[Black "KorolDimitriy75"]
[WhiteFideId "54109990"]
[WhiteElo "2138"]
[BlackElo "2433"]
[Result "1-0"]
[Round "02"]
[TimeControl "180+2"]
[Date "2023.05.31"]
[WhiteClock "0:00:13"]
[BlackClock "0:00:05"]

1. e4 {[%clk 0:02:59]}  c5 {[%clk 0:03:00]} 2. Nf3 {[%clk 0:02:56]}  d6 {[%clk 0:03:00]} 3. d4 {[%clk 0:02:56]}  cxd4 {[%clk 0:03:01]} 4. Nxd4 {[%clk 0:02:55]}  Nf6 {[%clk 0:03:01]} 5. Nc3 {[%clk 0:02:52]}  g6 {[%clk 0:03:02]} 6. Be3 {[%clk 0:02:51]}  Bg7 {[%clk 0:03:02]} 7. f3 {[%clk 0:02:51]}  O-O {[%clk 0:03:03]} 8. Qd2 {[%clk 0:02:51]}  Nc6 {[%clk 0:03:04]} 9. g4 {[%clk 0:02:51]}  Be6 {[%clk 0:03:03]} 10. Nxe6 {[%clk 0:02:50]}  fxe6 {[%clk 0:03:04]} 11. O-O-O {[%clk 0:02:51]}  Ne5 {[%clk 0:03:02]} 12. Be2 {[%clk 0:02:51]}  Qc8 {[%clk 0:03:01]} 13. h4 {[%clk 0:02:51]}  Nc4 {[%clk 0:02:58]} 14. Bxc4 {[%clk 0:02:49]}  Qxc4 {[%clk 0:02:59]} 15. h5 {[%clk 0:02:39]}  Nd7 {[%clk 0:02:57]} 16. hxg6 {[%clk 0:02:38]}  hxg6 {[%clk 0:02:56]} 17. f4 {[%clk 0:02:39]}  Nc5 {[%clk 0:02:44]} 18. e5 {[%clk 0:02:28]}  dxe5 {[%clk 0:02:29]} 19. f5 {[%clk 0:01:52]}  exf5 {[%clk 0:02:03]} 20. b3 {[%clk 0:01:48]}  Qxg4 {[%clk 0:01:16]} 21. Bxc5 {[%clk 0:01:34]}  Rfd8 {[%clk 0:01:10]} 22. Qe2 {[%clk 0:01:27]}  Qxe2 {[%clk 0:01:03]} 23. Nxe2 {[%clk 0:01:27]}  Bf6 {[%clk 0:00:49]} 24. Rdg1 {[%clk 0:01:03]}  Kg7 {[%clk 0:00:47]} 25. Ng3 {[%clk 0:01:02]}  Kf7 {[%clk 0:00:46]} 26. Rh7+ {[%clk 0:01:00]}  Ke6 {[%clk 0:00:46]} 27. Ne2 {[%clk 0:00:49]}  b6 {[%clk 0:00:36]} 28. Bb4 {[%clk 0:00:40]}  g5 {[%clk 0:00:32]} 29. Ng3 {[%clk 0:00:26]}  Rh8 {[%clk 0:00:22]} 30. Rgh1 {[%clk 0:00:24]}  Rxh7 {[%clk 0:00:20]} 31. Rxh7 {[%clk 0:00:24]}  g4 {[%clk 0:00:19]} 32. Kd1 {[%clk 0:00:18]}  Rh8 {[%clk 0:00:15]} 33. Rxh8 {[%clk 0:00:18]}  Bxh8 {[%clk 0:00:16]} 34. Ke2 {[%clk 0:00:18]}  e4 {[%clk 0:00:15]} 35. Nh5 {[%clk 0:00:17]}  Be5 {[%clk 0:00:15]} 36. Ke3 {[%clk 0:00:17]}  Kd5 {[%clk 0:00:13]} 37. c4+ {[%clk 0:00:16]}  Kc6 {[%clk 0:00:13]} 38. Bxe7 {[%clk 0:00:16]}  a6 {[%clk 0:00:12]} 39. Bf6 {[%clk 0:00:15]}  Bd6 {[%clk 0:00:12]} 40. Bd4 {[%clk 0:00:16]}  g3 {[%clk 0:00:12]} 41. Ng7 {[%clk 0:00:14]}  g2 {[%clk 0:00:07]} 42. Ke2 {[%clk 0:00:15]}  Bc5 {[%clk 0:00:07]} 43. Nxf5 {[%clk 0:00:13]}  Bxd4 {[%clk 0:00:06]} 44. Nxd4+ {[%clk 0:00:13]}  Kc5 {[%clk 0:00:06]} 45. Ne6+ {[%clk 0:00:10]}  Kd6 {[%clk 0:00:05]} 46. Kf2 {[%clk 0:00:10]}  Kxe6 {[%clk 0:00:05]} 47. Kxg2 {[%clk 0:00:11]}  Ke5 {[%clk 0:00:06]} 48. Kf2 {[%clk 0:00:11]}  Kd4 {[%clk 0:00:06]} 49. Ke2 {[%clk 0:00:12]}  a5 {[%clk 0:00:06]} 50. Kd2 {[%clk 0:00:12]}  e3+ {[%clk 0:00:06]} 51. Ke2 {[%clk 0:00:13]}  a4 {[%clk 0:00:05]} 52. bxa4 {[%clk 0:00:12]}  Kxc4 {[%clk 0:00:05]} 53. a5 {[%clk 0:00:12]}  Kb4 {[%clk 0:00:06]} 54. axb6 {[%clk 0:00:12]}  Ka3 {[%clk 0:00:05]} 55. b7 {[%clk 0:00:12]}  Kxa2 {[%clk 0:00:05]} 56. b8=Q {[%clk 0:00:13]} 1-0


[Site "https://www.chess.com"]

[Event "Titled Tuesday Blitz May 30 Late 2023"]
[White "Annaberdiyev, Meylis"]
[Black "Gatterer, Florian"]
[WhiteFideId "14000563"]
[BlackFideId "811688"]
[WhiteElo "2416"]
[BlackElo "2221"]
[Result "1-0"]
[Round "02"]
[TimeControl "180+2"]
[Date "2023.05.31"]
[WhiteClock "0:00:26"]
[BlackClock "0:00:12"]

1. e4 {[%clk 0:03:00]}  c5 {[%clk 0:03:00]} 2. Nf3 {[%clk 0:03:00]}  e6 {[%clk 0:03:00]} 3. b3 {[%clk 0:02:59]}  b6 {[%clk 0:03:00]} 4. Bb2 {[%clk 0:02:59]}  Bb7 {[%clk 0:03:00]} 5. Bd3 {[%clk 0:02:56]}  Nf6 {[%clk 0:02:58]} 6. e5 {[%clk 0:02:54]}  Nd5 {[%clk 0:02:58]} 7. Nc3 {[%clk 0:02:32]}  Nxc3 {[%clk 0:02:52]} 8. Bxc3 {[%clk 0:02:30]}  Be7 {[%clk 0:02:52]} 9. Qe2 {[%clk 0:02:25]}  O-O {[%clk 0:02:52]} 10. h4 {[%clk 0:02:24]}  f5 {[%clk 0:02:41]} 11. exf6 {[%clk 0:02:16]}  Bxf6 {[%clk 0:02:41]} 12. Ng5 {[%clk 0:02:09]}  h6 {[%clk 0:02:16]} 13. Qh5 {[%clk 0:02:02]}  Bxc3 {[%clk 0:02:01]} 14. dxc3 {[%clk 0:01:57]}  Qf6 {[%clk 0:01:52]} 15. O-O-O {[%clk 0:01:52]}  Nc6 {[%clk 0:01:35]} 16. Kb2 {[%clk 0:01:51]}  Ne5 {[%clk 0:01:20]} 17. Bh7+ {[%clk 0:01:11]}  Kh8 {[%clk 0:01:16]} 18. Rhe1 {[%clk 0:01:11]}  Bc6 {[%clk 0:00:56]} 19. Rxe5 {[%clk 0:01:10]}  Qxe5 {[%clk 0:00:54]} 20. Nf7+ {[%clk 0:01:10]}  Rxf7 {[%clk 0:00:54]} 21. Qxe5 {[%clk 0:01:09]}  Kxh7 {[%clk 0:00:54]} 22. f3 {[%clk 0:01:10]}  Raf8 {[%clk 0:00:53]} 23. Qe3 {[%clk 0:01:02]}  Kg8 {[%clk 0:00:51]} 24. a4 {[%clk 0:01:01]}  Rf4 {[%clk 0:00:50]} 25. h5 {[%clk 0:01:01]}  R4f5 {[%clk 0:00:50]} 26. Rh1 {[%clk 0:00:59]}  a5 {[%clk 0:00:40]} 27. Rh4 {[%clk 0:00:58]}  Rd5 {[%clk 0:00:37]} 28. c4 {[%clk 0:00:50]}  Rdf5 {[%clk 0:00:36]} 29. Qc3 {[%clk 0:00:41]}  R8f6 {[%clk 0:00:30]} 30. Rg4 {[%clk 0:00:39]}  Kf7 {[%clk 0:00:30]} 31. Rh4 {[%clk 0:00:35]}  d6 {[%clk 0:00:29]} 32. Qd2 {[%clk 0:00:35]}  d5 {[%clk 0:00:29]} 33. cxd5 {[%clk 0:00:35]}  exd5 {[%clk 0:00:29]} 34. Rh1 {[%clk 0:00:29]}  c4 {[%clk 0:00:26]} 35. Qd4 {[%clk 0:00:28]}  cxb3 {[%clk 0:00:23]} 36. cxb3 {[%clk 0:00:29]}  Bd7 {[%clk 0:00:23]} 37. Rc1 {[%clk 0:00:28]}  Rd6 {[%clk 0:00:23]} 38. Rc7 {[%clk 0:00:28]}  Ke8 {[%clk 0:00:22]} 39. Rb7 {[%clk 0:00:28]}  Rff6 {[%clk 0:00:17]} 40. g4 {[%clk 0:00:26]}  Rc6 {[%clk 0:00:15]} 41. Qe5+ {[%clk 0:00:25]}  Kd8 {[%clk 0:00:15]} 42. Rb8+ {[%clk 0:00:24]}  Rc8 {[%clk 0:00:15]} 43. Rxc8+ {[%clk 0:00:24]}  Kxc8 {[%clk 0:00:16]} 44. f4 {[%clk 0:00:25]}  Re6 {[%clk 0:00:15]} 45. Qxg7 {[%clk 0:00:24]}  Re2+ {[%clk 0:00:14]} 46. Ka3 {[%clk 0:00:25]}  Re4 {[%clk 0:00:11]} 47. g5 {[%clk 0:00:25]}  Rxf4 {[%clk 0:00:10]} 48. gxh6 {[%clk 0:00:25]}  d4 {[%clk 0:00:10]} 49. h7 {[%clk 0:00:25]}  d3 {[%clk 0:00:11]} 50. h8=Q+ {[%clk 0:00:26]}  Kc7 {[%clk 0:00:12]} 51. Qe5+ {[%clk 0:00:26]} 1-0


[Site "https://www.chess.com"]

[Event "Titled Tuesday Blitz May 30 Late 2023"]
[White "Sadilek, Peter"]
[Black "Goryachkina, Aleksandra"]
[WhiteFideId "1616439"]
[BlackFideId "4147103"]
[WhiteElo "2227"]
[BlackElo "2471"]
[Result "0-1"]
[Round "02"]
[TimeControl "180+2"]
[Date "2023.05.31"]
[WhiteClock "0:00:09"]
[BlackClock "0:00:05"]

1. d4 {[%clk 0:02:53]}  Nf6 {[%clk 0:02:57]} 2. c4 {[%clk 0:02:52]}  e6 {[%clk 0:02:57]} 3. g3 {[%clk 0:02:49]}  d5 {[%clk 0:02:52]} 4. Bg2 {[%clk 0:02:48]}  Bb4+ {[%clk 0:02:41]} 5. Bd2 {[%clk 0:02:43]}  a5 {[%clk 0:02:35]} 6. Nf3 {[%clk 0:02:43]}  O-O {[%clk 0:02:35]} 7. O-O {[%clk 0:02:43]}  dxc4 {[%clk 0:02:32]} 8. e3 {[%clk 0:02:42]}  c6 {[%clk 0:02:14]} 9. a4 {[%clk 0:02:29]}  Bxd2 {[%clk 0:02:07]} 10. Nfxd2 {[%clk 0:02:22]}  b6 {[%clk 0:01:49]} 11. Nxc4 {[%clk 0:02:17]}  Ba6 {[%clk 0:01:49]} 12. Qb3 {[%clk 0:02:08]}  Ra7 {[%clk 0:01:46]} 13. Rc1 {[%clk 0:02:05]}  Nd5 {[%clk 0:01:37]} 14. Nc3 {[%clk 0:01:51]}  Nd7 {[%clk 0:01:35]} 15. Ne4 {[%clk 0:01:26]}  Qb8 {[%clk 0:01:26]} 16. h4 {[%clk 0:00:54]}  h6 {[%clk 0:01:24]} 17. Rd1 {[%clk 0:00:46]}  Rc7 {[%clk 0:01:05]} 18. Rac1 {[%clk 0:00:44]}  c5 {[%clk 0:00:59]} 19. dxc5 {[%clk 0:00:35]}  Nxc5 {[%clk 0:00:59]} 20. Nxc5 {[%clk 0:00:33]}  Rxc5 {[%clk 0:00:59]} 21. Bxd5 {[%clk 0:00:20]}  exd5 {[%clk 0:00:59]} 22. Nxb6 {[%clk 0:00:20]}  Rxc1 {[%clk 0:00:59]} 23. Rxc1 {[%clk 0:00:19]}  Bc4 {[%clk 0:00:59]} 24. Rxc4 {[%clk 0:00:14]}  dxc4 {[%clk 0:00:59]} 25. Qb5 {[%clk 0:00:15]}  Rd8 {[%clk 0:00:51]} 26. Nxc4 {[%clk 0:00:15]}  Rd1+ {[%clk 0:00:48]} 27. Kh2 {[%clk 0:00:15]}  Qa8 {[%clk 0:00:47]} 28. g4 {[%clk 0:00:10]}  Qh1+ {[%clk 0:00:36]} 29. Kg3 {[%clk 0:00:10]}  Rg1+ {[%clk 0:00:35]} 30. Kf4 {[%clk 0:00:10]}  Qh2+ {[%clk 0:00:33]} 31. Kf5 {[%clk 0:00:10]}  g6+ {[%clk 0:00:27]} 32. Ke4 {[%clk 0:00:07]}  Rxg4+ {[%clk 0:00:20]} 33. Kd3 {[%clk 0:00:06]}  Qxf2 {[%clk 0:00:14]} 34. Qe8+ {[%clk 0:00:05]}  Kg7 {[%clk 0:00:14]} 35. Qe5+ {[%clk 0:00:04]}  Qf6 {[%clk 0:00:14]} 36. Qxf6+ {[%clk 0:00:01]}  Kxf6 {[%clk 0:00:15]} 37. Nxa5 {[%clk 0:00:02]}  Rxa4 {[%clk 0:00:14]} 38. Nc4 {[%clk 0:00:03]}  g5 {[%clk 0:00:12]} 39. hxg5+ {[%clk 0:00:03]}  Kxg5 {[%clk 0:00:12]} 40. b3 {[%clk 0:00:04]}  Rb4 {[%clk 0:00:12]} 41. Nd6 {[%clk 0:00:04]}  f5 {[%clk 0:00:09]} 42. Nf7+ {[%clk 0:00:03]}  Kg6 {[%clk 0:00:08]} 43. Ne5+ {[%clk 0:00:03]}  Kf6 {[%clk 0:00:08]} 44. Kc3 {[%clk 0:00:03]}  Re4 {[%clk 0:00:06]} 45. Nc4 {[%clk 0:00:03]}  h5 {[%clk 0:00:06]} 46. b4 {[%clk 0:00:04]}  h4 {[%clk 0:00:06]} 47. b5 {[%clk 0:00:04]}  h3 {[%clk 0:00:07]} 48. b6 {[%clk 0:00:05]}  h2 {[%clk 0:00:06]} 49. b7 {[%clk 0:00:06]}  Re8 {[%clk 0:00:05]} 50. Nd6 {[%clk 0:00:07]}  Rb8 {[%clk 0:00:06]} 51. Ne8+ {[%clk 0:00:05]}  Rxe8 {[%clk 0:00:05]} 52. Kd4 {[%clk 0:00:06]}  h1=Q {[%clk 0:00:05]} 53. e4 {[%clk 0:00:07]}  Qd1+ {[%clk 0:00:05]} 54. Kc5 {[%clk 0:00:08]}  Qc2+ {[%clk 0:00:05]} 55. Kb6 {[%clk 0:00:09]} 0-1


[Site "https://www.chess.com"]

[Event "Titled Tuesday Blitz May 30 Late 2023"]
[White "Arabidze, Meri"]
[Black "Arnold, Ken"]
[WhiteFideId "13604040"]
[BlackFideId "2056836"]
[WhiteElo "2405"]
[BlackElo "2394"]
[Result "1-0"]
[Round "02"]
[TimeControl "180+2"]
[Date "2023.05.31"]
[WhiteClock "0:00:06"]
[BlackClock "0:00:14"]

1. Nf3 {[%clk 0:03:00]}  c6 {[%clk 0:02:59]} 2. b3 {[%clk 0:03:01]}  d5 {[%clk 0:03:00]} 3. Bb2 {[%clk 0:03:02]}  Nf6 {[%clk 0:03:00]} 4. c4 {[%clk 0:03:01]}  Bf5 {[%clk 0:03:00]} 5. g3 {[%clk 0:02:58]}  Nbd7 {[%clk 0:02:58]} 6. Bg2 {[%clk 0:02:59]}  e6 {[%clk 0:02:59]} 7. O-O {[%clk 0:02:59]}  h6 {[%clk 0:02:59]} 8. d4 {[%clk 0:02:57]}  Bd6 {[%clk 0:02:56]} 9. Nc3 {[%clk 0:02:55]}  O-O {[%clk 0:02:55]} 10. e3 {[%clk 0:02:53]}  Re8 {[%clk 0:02:51]} 11. Rc1 {[%clk 0:02:51]}  Ne4 {[%clk 0:02:48]} 12. Nxe4 {[%clk 0:02:45]}  Bxe4 {[%clk 0:02:48]} 13. Qe2 {[%clk 0:02:32]}  Qf6 {[%clk 0:02:41]} 14. Rfd1 {[%clk 0:02:29]}  a6 {[%clk 0:02:37]} 15. Ne1 {[%clk 0:02:13]}  Bxg2 {[%clk 0:02:35]} 16. Kxg2 {[%clk 0:02:10]}  Rac8 {[%clk 0:02:21]} 17. c5 {[%clk 0:02:00]}  Bc7 {[%clk 0:02:18]} 18. f4 {[%clk 0:02:01]}  Qf5 {[%clk 0:02:06]} 19. Qd3 {[%clk 0:01:57]}  Nf6 {[%clk 0:02:01]} 20. b4 {[%clk 0:01:37]}  Re7 {[%clk 0:01:57]} 21. a4 {[%clk 0:01:37]}  h5 {[%clk 0:01:48]} 22. Nf3 {[%clk 0:01:33]}  Qxd3 {[%clk 0:01:24]} 23. Rxd3 {[%clk 0:01:34]}  Ne4 {[%clk 0:01:24]} 24. Rb3 {[%clk 0:01:28]}  Ra8 {[%clk 0:01:14]} 25. Rb1 {[%clk 0:01:27]}  b5 {[%clk 0:00:54]} 26. cxb6 {[%clk 0:01:24]}  Bxb6 {[%clk 0:00:53]} 27. Rc1 {[%clk 0:01:22]}  Rc7 {[%clk 0:00:50]} 28. Ba3 {[%clk 0:01:10]}  Rac8 {[%clk 0:00:49]} 29. Rb2 {[%clk 0:01:07]}  Nd6 {[%clk 0:00:43]} 30. Nd2 {[%clk 0:01:06]}  Nb7 {[%clk 0:00:28]} 31. Kf3 {[%clk 0:00:55]}  a5 {[%clk 0:00:28]} 32. bxa5 {[%clk 0:00:51]}  Bxa5 {[%clk 0:00:27]} 33. Nb3 {[%clk 0:00:50]}  Rd7 {[%clk 0:00:24]} 34. Rbc2 {[%clk 0:00:42]}  Ra8 {[%clk 0:00:17]} 35. Rxc6 {[%clk 0:00:37]}  Bd8 {[%clk 0:00:17]} 36. a5 {[%clk 0:00:09]}  Nxa5 {[%clk 0:00:17]} 37. Nxa5 {[%clk 0:00:09]}  Rxa5 {[%clk 0:00:18]} 38. Bd6 {[%clk 0:00:08]}  Ra8 {[%clk 0:00:16]} 39. h3 {[%clk 0:00:05]}  f6 {[%clk 0:00:16]} 40. g4 {[%clk 0:00:05]}  hxg4+ {[%clk 0:00:15]} 41. hxg4 {[%clk 0:00:06]}  Kf7 {[%clk 0:00:16]} 42. Bc5 {[%clk 0:00:07]}  Ke8 {[%clk 0:00:16]} 43. Rxe6+ {[%clk 0:00:06]}  Kf7 {[%clk 0:00:15]} 44. Rc6 {[%clk 0:00:07]}  Ra4 {[%clk 0:00:15]} 45. f5 {[%clk 0:00:06]}  Rc4 {[%clk 0:00:14]} 46. Rxc4 {[%clk 0:00:06]}  dxc4 {[%clk 0:00:15]} 47. Bb4 {[%clk 0:00:06]}  Rb7 {[%clk 0:00:14]} 48. Rxc4 {[%clk 0:00:06]}  Be7 {[%clk 0:00:14]} 49. Bxe7 {[%clk 0:00:06]}  Kxe7 {[%clk 0:00:15]} 50. e4 {[%clk 0:00:07]}  Kd6 {[%clk 0:00:16]} 51. Kf4 {[%clk 0:00:07]}  Rb1 {[%clk 0:00:16]} 52. e5+ {[%clk 0:00:07]}  fxe5+ {[%clk 0:00:15]} 53. dxe5+ {[%clk 0:00:07]}  Kd5 {[%clk 0:00:16]} 54. Ra4 {[%clk 0:00:06]}  Rf1+ {[%clk 0:00:16]} 55. Kg5 {[%clk 0:00:06]}  Kxe5 {[%clk 0:00:16]} 56. Ra7 {[%clk 0:00:06]}  Rg1 {[%clk 0:00:14]} 57. Rxg7 {[%clk 0:00:06]} 1-0


[Site "https://www.chess.com"]